bitfinex-derivatives/quotes_BTCF0:USTF0_20250703
["timestamp","ask_amount","ask_price","bid_price","bid_amount"]
[1751512545451,1.51530651,108720.0,108710.0,0.22090419]
[1751512546854,1.01263055,108720.0,108710.0,0.22090419]
[1751512547053,1.51530651,108720.0,108710.0,0.22090419]
[1751512553762,1.51530651,108720.0,108710.0,0.22094106]
[1751512555064,1.51530651,108720.0,108710.0,0.03702616]
[1751512556763,1.51530651,108720.0,108710.0,0.02316981]
[1751512556960,1.51530651,108720.0,108710.0,0.03702416]
[1751512559669,1.51530651,108720.0,108710.0,0.03702743]
[1751512560565,1.49317396,108720.0,108710.0,0.03702743]
[1751512560767,1.51521068,108720.0,108710.0,0.03702743]
[1751512562871,1.51521068,108720.0,108710.0,0.02198506]
[1751512563972,1.53992068,108720.0,108710.0,0.02198506]
[1751512569376,1.59496052,108720.0,108710.0,0.02198506]
[1751512571077,1.59496052,108720.0,108710.0,0.00812744]
[1751512571277,1.59496052,108720.0,108710.0,0.02208151]
[1751512573378,1.77892852,108720.0,108710.0,0.02208151]
[1751512573677,0.1839147,108710.0,108700.0,0.89187508]
[1751512573977,2.15976219,108710.0,108700.0,1.07580668]
[1751512574679,2.15976219,108710.0,108700.0,0.89187508]
[1751512574974,2.15976219,108710.0,108700.0,1.07680668]
[1751512575175,1.04252421,108710.0,108700.0,1.32814466]
[1751512575376,2.06634219,108710.0,108700.0,1.32814466]
[1751512575576,2.06634219,108710.0,108700.0,1.42204466]
[1751512576181,2.06834219,108710.0,108700.0,1.42204466]
[1751512576582,2.09904219,108710.0,108700.0,1.42204466]
[1751512577183,2.17088091,108710.0,108700.0,1.42204466]
[1751512578884,2.11569492,108710.0,108700.0,1.42204466]
[1751512579983,2.14039492,108710.0,108700.0,1.42204466]
[1751512584386,2.14039492,108710.0,108700.0,1.17070668]
[1751512584685,2.14039492,108710.0,108700.0,1.42204466]
[1751512585588,2.14039492,108710.0,108700.0,1.17070668]
[1751512585787,2.14039492,108710.0,108700.0,1.42204466]
[1751512586789,2.17249492,108710.0,108700.0,1.42204466]
[1751512587187,1.81169492,108710.0,108700.0,1.42204466]
[1751512587388,2.53329492,108710.0,108700.0,1.42204466]
[1751512587891,2.56559492,108710.0,108700.0,1.42204466]
[1751512588987,2.56559492,108710.0,108700.0,1.07680668]
[1751512590794,2.56559492,108710.0,108700.0,0.89287508]
[1751512591092,2.57214492,108710.0,108700.0,0.89287508]
[1751512592298,2.8234829,108710.0,108700.0,0.89287508]
[1751512593098,2.62733091,108710.0,108700.0,0.89287508]
[1751512595495,2.32080694,108710.0,108700.0,1.07680668]
[1751512595698,2.57214492,108710.0,108700.0,1.07680668]
[1751512596400,2.62733091,108710.0,108700.0,1.07680668]
[1751512598302,2.62733091,108710.0,108700.0,1.32814466]
[1751512600107,2.60529419,108710.0,108700.0,1.32814466]
[1751512600311,2.62732924,108710.0,108700.0,1.07680668]
[1751512602704,2.62732924,108710.0,108700.0,1.97948264]
[1751512602705,1.05932527,108710.0,108700.0,1.97948264]
[1751512602911,0.68862527,108710.0,108700.0,1.67448264]
[1751512603100,0.07207185,108710.0,108700.0,2.901748]
[1751512603302,0.0500368,108710.0,108700.0,2.86041002]
[1751512603702,0.0500368,108710.0,108700.0,2.35773406]
[1751512603901,0.0500368,108710.0,108700.0,2.86041002]
[1751512604611,0.0500368,108710.0,108700.0,2.63041002]
[1751512604806,0.0500368,108710.0,108700.0,2.57041002]
[1751512605113,0.0500368,108710.0,108700.0,2.63041002]
[1751512605307,0.0500368,108710.0,108700.0,2.21041002]
[1751512606604,0.0500368,108710.0,108700.0,1.70773406]
[1751512606807,0.0500368,108710.0,108700.0,2.21041002]
[1751512607113,0.0500368,108710.0,108700.0,2.26041002]
[1751512607302,0.0500368,108710.0,108700.0,2.84041002]
[1751512607506,0.0500368,108710.0,108700.0,2.78041002]
[1751512607710,0.0500368,108710.0,108700.0,2.59041002]
[1751512607908,0.0500368,108710.0,108700.0,2.35041002]
[1751512608110,0.0500368,108710.0,108700.0,2.64041002]
[1751512608411,0.0500368,108710.0,108700.0,2.34041002]
[1751512611218,0.0500368,108710.0,108700.0,2.35041002]
[1751512612217,0.0500368,108710.0,108700.0,2.29528264]
[1751512616613,0.0500368,108710.0,108700.0,2.50528264]
[1751512616809,0.0500368,108710.0,108700.0,2.20528264]
[1751512617219,0.0500368,108710.0,108700.0,2.46528264]
[1751512617421,0.0500368,108710.0,108700.0,2.15528264]
[1751512617917,0.0500368,108710.0,108700.0,2.14528264]
[1751512618219,0.0500368,108710.0,108700.0,2.15528264]
[1751512618822,0.0500368,108710.0,108700.0,2.21041002]
[1751512619022,0.0500368,108710.0,108700.0,2.87041002]
[1751512619516,0.0500368,108710.0,108700.0,2.31041002]
[1751512620019,0.0500368,108710.0,108700.0,2.35041002]
[1751512620220,0.0500368,108710.0,108700.0,2.34041002]
[1751512628523,0.0826368,108710.0,108700.0,2.24041002]
[1751512628724,0.2997515,108710.0,108700.0,2.24041002]
[1751512628924,0.1481368,108710.0,108700.0,2.14541002]
[1751512629120,0.94418948,108710.0,108700.0,1.25193406]
[1751512629325,1.38626837,108710.0,108700.0,1.97085406]
[1751512629526,1.38626837,108710.0,108700.0,2.16706466]
[1751512630217,1.40831753,108710.0,108700.0,1.07680668]
[1751512630426,1.40831753,108710.0,108700.0,0.89287508]
[1751512630625,1.40831753,108710.0,108700.0,1.07680668]
[1751512631026,1.40831753,108710.0,108700.0,0.89287508]
[1751512631625,1.40831753,108710.0,108700.0,1.07680668]
[1751512639532,1.40831753,108710.0,108700.0,0.89287508]
[1751512643833,1.76911753,108710.0,108700.0,1.07680668]
[1751512645128,1.76911753,108710.0,108700.0,0.89287508]
[1751512645636,1.76911753,108710.0,108700.0,1.07680668]
[1751512646436,1.76911753,108710.0,108700.0,0.89287508]
[1751512647738,1.76911753,108710.0,108700.0,1.07680668]
[1751512651746,1.77841981,108710.0,108700.0,1.07680668]
[1751512653047,1.75371981,108710.0,108700.0,1.07680668]
[1751512654647,1.74716981,108710.0,108700.0,1.07680668]
[1751512655147,1.73786753,108710.0,108700.0,1.07680668]
[1751512656851,1.7471891,108710.0,108700.0,1.07680668]
[1751512657752,1.73786753,108710.0,108700.0,1.07680668]
[1751512659155,1.79305352,108710.0,108700.0,1.07680668]
[1751512660154,1.7929356,108710.0,108700.0,1.07680668]
[1751512664155,1.7929356,108710.0,108700.0,1.32814466]
[1751512665154,2.6294556,108710.0,108700.0,1.32814466]
[1751512665653,2.6294556,108710.0,108700.0,1.36104466]
[1751512665856,2.6294556,108710.0,108700.0,1.10970668]
[1751512666054,2.6294556,108710.0,108700.0,1.36104466]
[1751512667658,2.5639556,108710.0,108700.0,1.36104466]
[1751512667957,2.5639556,108710.0,108700.0,1.42274466]
[1751512668653,2.6276556,108710.0,108700.0,1.42274466]
[1751512668855,2.57246961,108710.0,108700.0,1.42274466]
[1751512671067,2.54056961,108710.0,108700.0,1.42274466]
[1751512674166,2.57056961,108710.0,108700.0,1.42274466]
[1751512676770,2.57056961,108710.0,108700.0,1.35934466]
[1751512680172,2.57056961,108710.0,108700.0,1.10800668]
[1751512680373,2.57056961,108710.0,108700.0,1.35934466]
[1751512681268,1.73404961,108710.0,108700.0,1.35934466]
[1751512681472,1.42091163,108710.0,108700.0,1.61068264]
[1751512681673,1.42091163,108710.0,108700.0,1.67458264]
[1751512682074,1.38831163,108710.0,108700.0,1.67458264]
[1751512682974,1.29964961,108710.0,108700.0,1.67458264]
[1751512685477,1.04831163,108710.0,108700.0,1.67458264]
[1751512685781,0.97751163,108710.0,108700.0,2.51106264]
[1751512686078,1.02751163,108710.0,108700.0,2.51106264]
[1751512686275,0.65751163,108710.0,108700.0,2.51106264]
[1751512686468,1.03751163,108710.0,108700.0,2.51106264]
[1751512686673,1.03751163,108710.0,108700.0,2.87186264]
[1751512686674,0.04071804,108710.0,108700.0,2.87186264]
[1751512686874,0.04071804,108710.0,108700.0,2.92699002]
[1751512688881,0.04080791,108710.0,108700.0,2.87186264]
[1751512689984,0.22472261,108710.0,108700.0,1.53270668]
[1751512690178,0.22472261,108710.0,108700.0,2.62044466]
[1751512690482,0.04080791,108710.0,108700.0,2.87178264]
[1751512690982,0.22472261,108710.0,108700.0,2.87178264]
[1751512691384,0.22472261,108710.0,108700.0,2.36910668]
[1751512691579,0.22472261,108710.0,108700.0,2.87178264]
[1751512692384,0.22472261,108710.0,108700.0,2.36910668]
[1751512692586,0.22473339,108710.0,108700.0,2.87178264]
[1751512693883,0.20794659,108710.0,108700.0,2.87178264]
[1751512694686,0.20794537,108710.0,108700.0,2.87178264]
[1751512696588,0.45928335,108710.0,108700.0,2.03538264]
[1751512696891,1.32008093,108710.0,108700.0,1.07680668]
[1751512697790,1.32008093,108710.0,108700.0,2.16594466]
[1751512697991,1.32008093,108710.0,108700.0,1.32814466]
[1751512698191,1.32008093,108710.0,108700.0,2.16590466]
[1751512700486,1.29805026,108710.0,108700.0,2.16590466]
[1751512700689,1.32008184,108710.0,108700.0,2.16590466]
[1751512701692,1.32008184,108710.0,108700.0,1.91456668]
[1751512701888,1.32008259,108710.0,108700.0,1.91456668]
[1751512702093,1.32008259,108710.0,108700.0,1.32814466]
[1751512702794,1.06874461,108710.0,108700.0,1.32814466]
[1751512702993,1.32008259,108710.0,108700.0,1.32814466]
[1751512704096,1.32008259,108710.0,108700.0,1.07680668]
[1751512704296,1.32008259,108710.0,108700.0,1.32814466]
[1751512707300,0.95928259,108710.0,108700.0,1.32814466]
[1751512707495,1.32008259,108710.0,108700.0,1.32814466]
[1751512708103,0.95928259,108710.0,108700.0,1.32814466]
[1751512708303,1.32008259,108710.0,108700.0,1.32814466]
[1751512709203,1.32008259,108710.0,108700.0,1.07680668]
[1751512709501,1.32008259,108710.0,108700.0,1.32814466]
[1751512713401,1.29805026,108710.0,108700.0,1.32814466]
[1751512713706,1.32016419,108710.0,108700.0,1.32814466]
[1751512714905,1.32016419,108710.0,108700.0,1.07680668]
[1751512715106,1.57150217,108710.0,108700.0,1.07680668]
[1751512715305,2.15800419,108710.0,108700.0,1.07680668]
[1751512716209,2.51880419,108710.0,108700.0,1.07680668]
[1751512717709,2.26746621,108710.0,108700.0,1.07680668]
[1751512718009,2.51880419,108710.0,108700.0,1.07680668]
[1751512718710,2.26746621,108710.0,108700.0,1.07680668]
[1751512719009,2.51880419,108710.0,108700.0,1.07680668]
[1751512719902,2.51880419,108710.0,108700.0,0.89287508]
[1751512725119,2.26746621,108710.0,108700.0,0.89287508]
[1751512725417,2.51880419,108710.0,108700.0,0.89287508]
[1751512727322,2.26746621,108710.0,108700.0,0.89287508]
[1751512727527,2.51880419,108710.0,108700.0,0.89287508]
[1751512728630,2.59239419,108710.0,108700.0,0.89287508]
[1751512730828,2.59239419,108710.0,108700.0,1.07680668]
[1751512732230,1.87079419,108710.0,108700.0,1.07680668]
[1751512732430,2.59239419,108710.0,108700.0,1.07680668]
[1751512736034,2.59568419,108710.0,108700.0,1.07680668]
[1751512737329,1.87408419,108710.0,108700.0,1.07680668]
[1751512737537,2.59568419,108710.0,108700.0,0.89287508]
[1751512740437,2.59568419,108710.0,108700.0,1.07680668]
[1751512742138,2.59568419,108710.0,108700.0,0.89287508]
[1751512742437,2.65087018,108710.0,108700.0,0.89287508]
[1751512743637,2.59568419,108710.0,108700.0,0.89287508]
[1751512744436,2.65087018,108710.0,108700.0,1.07680658]
[1751512744635,2.65087018,108710.0,108700.0,0.89287508]
[1751512746232,2.59568419,108710.0,108700.0,0.89287508]
[1751512746434,2.65087018,108710.0,108700.0,0.89287508]
[1751512748636,2.90220816,108710.0,108700.0,0.89287508]
[1751512755943,2.3995322,108710.0,108700.0,0.89287508]
[1751512756142,2.90220816,108710.0,108700.0,0.89287508]
[1751512759538,2.3995322,108710.0,108700.0,0.89287508]
[1751512759744,2.90220816,108710.0,108700.0,0.89287508]
[1751512760545,2.90220816,108710.0,108700.0,1.07680668]
[1751512761745,2.65087018,108710.0,108700.0,1.07680668]
[1751512763347,2.90220816,108710.0,108700.0,1.07680668]
[1751512766148,2.65087018,108710.0,108700.0,1.07680668]
[1751512766845,1.81303018,108710.0,108700.0,1.07680668]
[1751512767050,2.65003018,108710.0,108700.0,1.13980668]
[1751512769056,2.65003018,108710.0,108700.0,1.39114466]
[1751512769057,2.55397018,108710.0,108700.0,1.39114466]
[1751512769244,2.55397018,108710.0,108700.0,1.42234466]
[1751512773655,1.71713018,108710.0,108700.0,1.42234466]
[1751512773959,1.08060621,108710.0,108700.0,1.67368264]
[1751512774351,1.08060621,108710.0,108700.0,1.17100668]
[1751512774560,1.08060621,108710.0,108700.0,1.67368264]
[1751512778269,0.35900621,108710.0,108700.0,1.67368264]
[1751512778568,1.34114419,108710.0,108700.0,2.25910466]
[1751512778767,0.97114419,108710.0,108700.0,2.25910466]
[1751512779364,1.30114419,108710.0,108700.0,2.25910466]
[1751512782267,1.30114419,108710.0,108700.0,2.22790466]
[1751512782470,1.39334419,108710.0,108700.0,2.22790466]
[1751512783167,1.36154419,108710.0,108700.0,2.25910466]
[1751512785572,1.36154419,108710.0,108700.0,1.42234466]
[1751512785771,1.36154419,108710.0,108700.0,2.25906466]
[1751512786172,1.03154419,108710.0,108700.0,2.25906466]
[1751512786368,1.36154419,108710.0,108700.0,1.42234466]
[1751512786570,1.00074419,108710.0,108700.0,2.25930466]
[1751512786868,1.36154419,108710.0,108700.0,2.25930466]
[1751512787773,1.36154419,108710.0,108700.0,2.51056264]
[1751512788073,1.03154419,108710.0,108700.0,2.51056264]
[1751512788976,1.03154419,108710.0,108700.0,1.67368264]
[1751512789276,0.10099393,108710.0,108700.0,2.51056264]
[1751512789488,0.10099393,108710.0,108700.0,3.59270062]
[1751512789681,0.07888,108710.0,108700.0,3.72649002]
[1751512789882,0.07888,108710.0,108700.0,3.977828]
[1751512790687,0.07888,108710.0,108700.0,3.72649002]
[1751512791290,0.07888,108710.0,108700.0,3.11649002]
[1751512791490,0.07888,108710.0,108700.0,3.49649002]
[1751512795894,0.07888,108710.0,108700.0,3.37649002]
[1751512796499,0.2944947,108710.0,108700.0,3.37649002]
[1751512796797,0.11058,108710.0,108700.0,3.37649002]
[1751512797399,0.14298,108710.0,108700.0,3.37649002]
[1751512797698,0.3268947,108710.0,108700.0,2.92273002]
[1751512797891,0.3571947,108710.0,108700.0,2.92273002]
[1751512798090,0.3571947,108710.0,108700.0,2.92269002]
[1751512801404,0.17328,108710.0,108700.0,2.92269002]
[1751512806106,0.17328,108710.0,108700.0,3.21599002]
[1751512806406,0.17328,108710.0,108700.0,3.25599002]
[1751512808507,0.07888,108710.0,108700.0,2.96599002]
[1751512808707,0.07888,108710.0,108700.0,3.21599002]
[1751512810210,0.07888,108710.0,108700.0,2.96599002]
[1751512810503,0.07888,108710.0,108700.0,3.06599002]
[1751512810703,0.07888,108710.0,108700.0,3.44679002]
[1751512811602,0.07888,108710.0,108700.0,3.73679002]
[1751512811806,0.07888,108710.0,108700.0,3.44679002]
[1751512814709,0.07888,108710.0,108700.0,3.69679002]
[1751512815010,0.07888,108710.0,108700.0,3.64166264]
[1751512816209,0.07888,108710.0,108700.0,3.71494233]
[1751512820610,0.07888,108710.0,108700.0,3.46494233]
[1751512820811,0.14288,108710.0,108700.0,3.46394233]
[1751512821012,0.17308,108710.0,108700.0,3.46394233]
[1751512821517,0.17308,108710.0,108700.0,3.25064233]
[1751512836728,0.17308,108710.0,108700.0,3.55064233]
[1751512837528,0.17308,108710.0,108700.0,3.51064233]
[1751512837722,0.14288,108710.0,108700.0,3.60374233]
[1751512837924,0.11188,108710.0,108700.0,3.60374233]
[1751512838230,0.11188,108710.0,108700.0,3.85508031]
[1751512838436,0.11188,108710.0,108700.0,3.60374233]
[1751512843541,0.14248,108710.0,108700.0,3.46374233]
[1751512843739,0.17478,108710.0,108700.0,3.46374233]
[1751512847246,0.17478,108710.0,108700.0,3.10294233]
[1751512847446,0.17478,108710.0,108700.0,3.46374233]
[1751512852646,0.19681894,108710.0,108700.0,3.39046264]
[1751512855155,0.19676724,108710.0,108700.0,3.39046264]
[1751512855452,0.19676724,108710.0,108700.0,2.55338264]
[1751512855651,0.19676724,108710.0,108700.0,3.39010264]
[1751512859553,0.19676724,108710.0,108700.0,3.46338233]
[1751512859851,0.19676724,108710.0,108700.0,3.39010264]
[1751512860249,0.19676724,108710.0,108700.0,2.55338264]
[1751512860449,0.99281992,108710.0,108700.0,2.16486466]
[1751512860653,1.33281992,108710.0,108700.0,2.22001306]
[1751512861255,1.33281992,108710.0,108700.0,2.47135104]
[1751512861456,1.33281992,108710.0,108700.0,2.22001306]
[1751512862455,1.33281992,108710.0,108700.0,1.38329306]
[1751512862656,1.33281992,108710.0,108700.0,2.47135104]
[1751512864056,1.33281992,108710.0,108700.0,2.22001306]
[1751512866955,1.33281992,108710.0,108700.0,1.38329306]
[1751512867154,1.33281992,108710.0,108700.0,2.22001306]
[1751512867354,1.34913687,108710.0,108700.0,2.22001306]
[1751512867653,0.64833687,108710.0,108700.0,1.38329306]
[1751512867860,1.33913687,108710.0,108700.0,1.13195508]
[1751512868057,1.33913687,108710.0,108700.0,1.07680668]
[1751512869565,1.41136293,108710.0,108700.0,1.07680668]
[1751512874070,2.02350091,108710.0,108700.0,1.07680668]
[1751512874667,2.02350091,108710.0,108700.0,0.89287508]
[1751512875473,1.77216293,108710.0,108700.0,0.89287508]
[1751512876873,1.78154254,108710.0,108700.0,0.89287508]
[1751512878470,2.03288052,108710.0,108700.0,0.89287508]
[1751512878676,2.21686452,108710.0,108700.0,0.89287508]
[1751512878873,2.46686452,108710.0,108700.0,0.89287508]
[1751512880272,2.21686452,108710.0,108700.0,0.89287508]
[1751512884581,2.19487728,108710.0,108700.0,0.89287508]
[1751512884781,2.21679762,108710.0,108700.0,0.89287508]
[1751512886383,2.03281362,108710.0,108700.0,0.89287508]
[1751512886581,2.21679762,108710.0,108700.0,0.89287508]
[1751512888281,2.27198361,108710.0,108700.0,0.89287508]
[1751512894687,2.08799961,108710.0,108700.0,0.89287508]
[1751512900592,2.03281362,108710.0,108700.0,0.89287508]
[1751512901690,3.10345362,108710.0,108700.0,0.89287508]
[1751512901889,3.15852929,108710.0,108700.0,0.89287508]
[1751512903293,3.10345362,108710.0,108700.0,0.89287508]
[1751512906295,2.38185362,108710.0,108700.0,0.89287508]
[1751512906498,3.10345362,108710.0,108700.0,0.89287508]
[1751512906696,3.17653194,108710.0,108700.0,0.89287508]
[1751512912902,2.45493194,108710.0,108700.0,0.89287508]
[1751512913101,3.17653194,108710.0,108700.0,0.89287508]
[1751512919003,3.10345362,108710.0,108700.0,0.89287508]
[1751512921305,3.10345362,108710.0,108700.0,0.001]
[1751512923904,3.17705835,108710.0,108700.0,0.001]
[1751512934911,2.45545835,108710.0,108700.0,0.001]
[1751512935111,3.17705835,108710.0,108700.0,0.001]
[1751512935311,2.45545835,108710.0,108700.0,0.001]
[1751512935511,3.17705835,108710.0,108700.0,0.001]
[1751512936712,2.33977835,108710.0,108700.0,0.001]
[1751512936912,3.17677835,108710.0,108700.0,0.001]
[1751512937609,2.51315603,108710.0,108700.0,0.001]
[1751512937813,2.56835561,108710.0,108700.0,0.2803316]
[1751512938203,1.73139561,108710.0,108700.0,0.53166958]
[1751512938403,2.56835561,108710.0,108700.0,0.53166958]
[1751512938615,1.73139561,108710.0,108700.0,0.53166958]
[1751512938907,2.56835561,108710.0,108700.0,0.53166958]
[1751512939113,2.51315603,108710.0,108700.0,0.53166958]
[1751512939703,1.67619603,108710.0,108700.0,0.53166958]
[1751512948326,0.1730264,108710.0,108700.0,0.78300756]
[1751512950426,0.15110606,108710.0,108700.0,0.78300756]
[1751512952326,0.50947894,108710.0,108700.0,0.53166958]
[1751512952526,0.86947894,108710.0,108700.0,0.53166958]
[1751512952726,0.25814096,108710.0,108700.0,0.53166958]
[1751512953930,0.61814096,108710.0,108700.0,0.53166958]
[1751512954225,0.25814096,108710.0,108700.0,0.53166958]
[1751512954539,0.81947894,108710.0,108700.0,1.36882958]
[1751512957335,0.8415003,108710.0,108700.0,1.36882958]
[1751512958534,0.8415003,108710.0,108700.0,1.62016756]
[1751512960140,0.5647003,108710.0,108700.0,1.62016756]
[1751512960941,0.28016232,108710.0,108700.0,1.62016756]
[1751512961142,0.5315003,108710.0,108700.0,1.62016756]
[1751512962140,0.5647003,108710.0,108700.0,1.62016756]
[1751512962538,0.9347003,108710.0,108700.0,1.62016756]
[1751512963140,0.9676003,108710.0,108700.0,1.62016756]
[1751512963640,0.5976003,108710.0,108700.0,0.78300756]
[1751512963841,0.9176003,108710.0,108700.0,0.49936958]
[1751512964141,0.6284003,108710.0,108700.0,1.27306958]
[1751512964635,0.9892003,108710.0,108700.0,1.27306958]
[1751512965730,1.3192003,108710.0,108700.0,1.52440756]
[1751512966431,0.9892003,108710.0,108700.0,1.52440756]
[1751512968139,0.9892003,108710.0,108700.0,1.0217316]
[1751512968328,1.3492003,108710.0,108700.0,1.27306958]
[1751512968530,0.9892003,108710.0,108700.0,1.27306958]
[1751512970148,0.73786232,108710.0,108700.0,1.0217316]
[1751512970339,0.9892003,108710.0,108700.0,1.27306958]
[1751512972142,0.9892003,108710.0,108700.0,0.43626958]
[1751512972342,0.9892003,108710.0,108700.0,1.27306958]
[1751512973342,0.9892003,108710.0,108700.0,1.32821798]
[1751512974044,0.9892003,108710.0,108700.0,1.27306958]
[1751512974641,0.6284003,108710.0,108700.0,1.27306958]
[1751512974939,0.9892003,108710.0,108700.0,1.27306958]
[1751512976047,0.9892003,108710.0,108700.0,1.27314958]
[1751512977345,0.9892003,108710.0,108700.0,1.32829798]
[1751512979444,1.0092003,108710.0,108700.0,1.32829798]
[1751512979746,1.00930779,108710.0,108700.0,1.32829798]
[1751512980946,0.80539289,108710.0,108700.0,1.32829798]
[1751512981644,0.98930849,108710.0,108700.0,1.32829798]
[1751512983143,0.80539289,108710.0,108700.0,1.32829798]
[1751512983644,0.44459289,108710.0,108700.0,1.32829798]
[1751512983843,0.80539289,108710.0,108700.0,1.32829798]
[1751512984040,0.80539289,108710.0,108700.0,2.22017306]
[1751512984943,0.80539289,108710.0,108700.0,2.47151104]
[1751512986846,0.82539289,108710.0,108700.0,2.47151104]
[1751512987441,0.82539289,108710.0,108700.0,2.41636264]
[1751512988045,1.00930859,108710.0,108700.0,2.41636264]
[1751512988245,0.82539289,108710.0,108700.0,2.16502466]
[1751512988745,0.82539289,108710.0,108700.0,2.22017306]
[1751512991549,0.46459289,108710.0,108700.0,2.22017306]
[1751512991742,0.82539289,108710.0,108700.0,2.22017306]
[1751512992954,0.82539289,108710.0,108700.0,1.96883508]
[1751512993138,0.82539289,108710.0,108700.0,2.22017306]
[1751512996650,0.57405491,108710.0,108700.0,2.22017306]
[1751512996852,0.82539289,108710.0,108700.0,2.22017306]
[1751512997147,0.82539289,108710.0,108700.0,2.47151104]
[1751512999248,0.57405491,108710.0,108700.0,2.47151104]
[1751512999454,0.82539494,108710.0,108700.0,2.47151104]
[1751513000452,0.57405696,108710.0,108700.0,2.47151104]
[1751513001057,0.82539494,108710.0,108700.0,2.47151104]
[1751513001254,0.57405696,108710.0,108700.0,2.56791104]
[1751513001555,0.45715696,108710.0,108700.0,2.56791104]
[1751513001747,0.45715696,108710.0,108700.0,2.52276264]
[1751513002653,0.45715696,108710.0,108700.0,2.51276264]
[1751513002954,0.45715696,108710.0,108700.0,2.51292264]
[1751513003156,0.52015696,108710.0,108700.0,2.51292264]
[1751513003455,0.52015696,108710.0,108700.0,2.56807104]
[1751513005158,0.52010345,108710.0,108700.0,2.56807104]
[1751513008558,0.53010345,108710.0,108700.0,2.56807104]
[1751513009261,0.52010345,108710.0,108700.0,2.56807104]
[1751513010654,0.09630345,108710.0,108700.0,2.93807104]
[1751513010855,0.09630345,108710.0,108700.0,3.20807104]
[1751513011060,0.15630345,108710.0,108700.0,3.20807104]
[1751513012160,0.15630345,108710.0,108700.0,2.88807104]
[1751513012362,0.15630345,108710.0,108700.0,2.94807104]
[1751513013763,0.15630345,108710.0,108700.0,2.57807104]
[1751513013965,0.15630345,108710.0,108700.0,2.56807104]
[1751513014451,0.09630345,108710.0,108700.0,2.56807104]
[1751513017864,0.09630345,108710.0,108700.0,2.61807104]
[1751513018063,0.09630345,108710.0,108700.0,2.93807104]
[1751513018258,0.09630345,108710.0,108700.0,2.92807104]
[1751513020963,0.09630345,108710.0,108700.0,2.87807104]
[1751513021152,0.09630345,108710.0,108700.0,3.17807104]
[1751513021359,0.53277,108720.0,108710.0,0.1839156]
[1751513021554,0.06799,108720.0,108710.0,0.84173996]
[1751513021754,0.06799,108720.0,108710.0,0.59040198]
[1751513022064,0.06799,108720.0,108710.0,0.81040198]
[1751513022261,0.03699,108720.0,108710.0,1.09979156]
[1751513022565,0.03699,108720.0,108710.0,1.21360198]
[1751513022765,0.00639,108720.0,108710.0,1.46493996]
[1751513023157,0.00639,108720.0,108710.0,0.90493996]
[1751513023363,0.00839,108720.0,108710.0,1.39493996]
[1751513024166,0.00839,108720.0,108710.0,1.75573996]
[1751513027662,0.47028083,108730.0,108720.0,0.1838987]
[1751513027868,0.72028083,108730.0,108720.0,1.53927316]
[1751513028461,0.72028083,108730.0,108720.0,1.94927316]
[1751513028668,0.35948083,108730.0,108720.0,1.94927316]
[1751513028962,0.36248083,108730.0,108720.0,1.53927316]
[1751513029358,0.36548083,108730.0,108720.0,1.53927316]
[1751513029669,0.36548083,108730.0,108720.0,1.59927316]
[1751513030368,0.36548083,108730.0,108720.0,1.60838677]
[1751513030568,0.43905083,108730.0,108720.0,1.54838677]
[1751513030965,0.62293263,108730.0,108720.0,1.54838677]
[1751513031167,0.43905083,108730.0,108720.0,1.54838677]
[1751513032566,0.43905083,108730.0,108720.0,1.98838677]
[1751513032766,0.14197,108730.0,108720.0,2.60918677]
[1751513032961,0.11027,108730.0,108720.0,2.66968677]
[1751513033167,0.0628,108740.0,108730.0,0.1838818]
[1751513033473,0.4225,108750.0,108740.0,0.1838649]
[1751513033668,0.607248,108750.0,108740.0,1.54033045]
[1751513035272,0.607248,108750.0,108740.0,1.60033045]
[1751513035874,0.607248,108750.0,108740.0,1.54033045]
[1751513036075,0.607248,108750.0,108740.0,1.54133045]
[1751513036076,0.612248,108750.0,108740.0,1.54133045]
[1751513036277,0.5903,108750.0,108740.0,1.54133045]
[1751513037076,0.774148,108750.0,108740.0,1.54133045]
[1751513037277,1.02548598,108750.0,108740.0,1.54133045]
[1751513037678,1.02848598,108750.0,108740.0,1.54133045]
[1751513037878,0.777148,108750.0,108740.0,1.54133045]
[1751513038176,1.02848598,108750.0,108740.0,1.54133045]
[1751513038874,0.777148,108750.0,108740.0,1.54133045]
[1751513039177,0.5933,108750.0,108740.0,1.54133045]
[1751513039573,0.2325,108750.0,108740.0,1.54133045]
[1751513039971,0.0384,108750.0,108740.0,2.48266843]
[1751513040277,0.07355,108760.0,108750.0,0.183848]
[1751513040479,0.0317,108770.0,108760.0,0.1838311]
[1751513040783,0.0317,108770.0,108760.0,2.58601246]
[1751513040984,0.0317,108770.0,108760.0,2.61921246]
[1751513041383,0.0317,108770.0,108760.0,2.87055044]
[1751513041581,0.4579,108780.0,108770.0,0.1838141]
[1751513041783,0.4579,108780.0,108770.0,0.81480453]
[1751513041983,0.0971,108780.0,108770.0,1.17560453]
[1751513042484,0.0971,108780.0,108770.0,1.27492453]
[1751513042882,0.1021,108780.0,108770.0,1.32492453]
[1751513043087,0.1021,108780.0,108770.0,1.62492453]
[1751513043386,0.1021,108780.0,108770.0,1.67492453]
[1751513044088,0.1061,108780.0,108770.0,1.67492453]
[1751513044584,0.1061,108780.0,108770.0,1.27476453]
[1751513045278,0.1061,108780.0,108770.0,1.93476453]
[1751513045481,0.1061,108780.0,108770.0,1.32476453]
[1751513045787,0.1061,108780.0,108770.0,1.27476453]
[1751513046187,0.1061,108780.0,108770.0,1.70472453]
[1751513046383,0.1061,108780.0,108770.0,1.90472453]
[1751513046584,0.1061,108780.0,108770.0,1.32492453]
[1751513046782,0.1061,108780.0,108770.0,1.27492453]
[1751513046987,0.1061,108780.0,108770.0,1.56492453]
[1751513047387,0.1061,108780.0,108770.0,1.27492453]
[1751513048183,0.1061,108780.0,108770.0,1.87492453]
[1751513048388,0.1061,108780.0,108770.0,1.27492453]
[1751513049684,0.1061,108780.0,108770.0,1.32492453]
[1751513049880,0.1061,108780.0,108770.0,1.27492453]
[1751513050080,0.1061,108780.0,108770.0,1.46492453]
[1751513050686,0.1061,108780.0,108770.0,1.80492453]
[1751513050886,0.0731,108780.0,108770.0,1.83492453]
[1751513051087,0.0731,108780.0,108770.0,1.92992453]
[1751513051288,0.0731,108780.0,108770.0,2.29072453]
[1751513051485,0.009,108780.0,108770.0,2.29072453]
[1751513051794,0.009,108780.0,108770.0,1.95072453]
[1751513051985,0.009,108780.0,108770.0,2.33072453]
[1751513052180,0.009,108780.0,108770.0,2.0797341]
[1751513052386,0.0723,108780.0,108770.0,1.3850941]
[1751513052593,0.0723,108780.0,108770.0,1.63608453]
[1751513053488,0.0723,108780.0,108770.0,2.01608453]
[1751513053791,0.0723,108780.0,108770.0,1.63608453]
[1751513054087,0.0723,108780.0,108770.0,1.95608453]
[1751513054294,0.0723,108780.0,108770.0,1.63608453]
[1751513054694,0.0723,108780.0,108770.0,1.93608453]
[1751513054890,0.0723,108780.0,108770.0,1.63608453]
[1751513059991,0.0723,108780.0,108770.0,1.68608453]
[1751513060198,0.0723,108780.0,108770.0,1.96608453]
[1751513060498,0.0723,108780.0,108770.0,1.63608453]